fUST/lending_fUST_20241118
["ID","MTS","AMOUNT","RATE_DAILY","PERIOD"]
[342489229,1731922241714,-1769.45,0.00014736,2]
[342489231,1731922241724,-2333.75,0.00014736,2]
[342489233,1731922241734,-500.0,0.00014736,2]
[342489235,1731922241743,-500.0,0.00014736,2]
[342489238,1731922241754,-662.31,0.00014736,2]
[342489240,1731922241763,-8121.95047186,0.00014736,2]
[342489267,1731922242103,-469.442683,0.00014736,2]
[342489423,1731922243595,-863.62,0.00014188,2]
[342489425,1731922243605,-500.0,0.00014189,2]
[342489427,1731922243615,-1456.7,0.00014189,2]
[342489429,1731922243625,-863.62,0.00014462,2]
[342489431,1731922243634,-500.0,0.00014463,2]
[342489433,1731922243643,-666.65028931,0.00014736,2]
[342489435,1731922243655,-4269.87080956,0.00014736,2]
[342489437,1731922243666,-740.08574627,0.00014736,2]
[342489439,1731922243676,-2088.24,0.00014736,2]
[342489441,1731922243685,-603.14,0.00014736,2]
[342489443,1731922243694,-7542.3,0.00014736,2]
[342489445,1731922243703,-1083.98152996,0.00014736,2]
[342489448,1731922243715,-13998.09847004,0.00014736,2]
[342489450,1731922243724,-1845.96,0.00014736,2]
[342489452,1731922243734,-1016.34,0.00014737,2]
[342489454,1731922243743,-500.0,0.00014737,2]
[342489456,1731922243755,-500.0,0.00014737,2]
[342489458,1731922243765,-800.39,0.00014737,2]
[342489460,1731922243774,-781.91,0.00014737,2]
[342489462,1731922243783,-500.0,0.00014737,2]
[342489464,1731922243792,-500.0,0.00014737,2]
[342489466,1731922243802,-510.02,0.00014737,2]
[342489468,1731922243811,-1414.76,0.00014737,2]
[342489470,1731922243820,-643.34,0.00014737,2]
[342489472,1731922243830,-2336.0,0.00014737,2]
[342489474,1731922243839,-631.58,0.00014737,2]
[342489476,1731922243849,-500.0,0.00014737,2]
[342489478,1731922243858,-764.24,0.00014737,2]
[342489480,1731922243867,-500.0,0.00014737,2]
[342489482,1731922243877,-654.86,0.00014737,2]
[342489484,1731922243887,-745.85,0.00014737,2]
[342489486,1731922243896,-500.0,0.00014737,2]
[342489488,1731922243906,-500.0,0.00014737,2]
[342489490,1731922243916,-1022.33,0.00014737,2]
[342489492,1731922243925,-500.0,0.00014737,2]
[342489494,1731922243934,-716.83,0.00014737,2]
[342489496,1731922243944,-1133.88,0.00014737,2]
[342489498,1731922243953,-698.24,0.00014737,2]
[342489500,1731922243963,-500.0,0.00014737,2]
[342489502,1731922243973,-500.0,0.00014737,2]
[342489504,1731922243983,-1232.11,0.00014737,2]
[342489506,1731922243992,-500.0,0.00014737,2]
[342489508,1731922244004,-500.0,0.00014737,2]
[342489510,1731922244013,-1781.36,0.00014737,2]
[342489512,1731922244023,-559.88,0.00014737,2]
[342489514,1731922244039,-1522.1,0.00014737,2]
[342489516,1731922244048,-517.79,0.00014737,2]
[342489518,1731922244058,-500.0,0.00014737,2]
[342489521,1731922244068,-500.0,0.00014737,2]
[342489523,1731922244079,-500.0,0.00014737,2]
[342489525,1731922244089,-500.0,0.00014737,2]
[342489527,1731922244098,-500.0,0.00014737,2]
[342489529,1731922244108,-544.32,0.00014737,2]
[342489530,1731922244117,-997.82,0.00014737,2]
[342489532,1731922244127,-500.0,0.00014737,2]
[342489535,1731922244137,-500.0,0.00014737,2]
[342489536,1731922244147,-500.0,0.00014738,2]
[342489539,1731922244156,-501.06,0.00014738,2]
[342489540,1731922244165,-930.96,0.00014738,2]
[342489542,1731922244175,-508.6,0.00014738,2]
[342489545,1731922244184,-500.0,0.00014738,2]
[342489547,1731922244194,-500.0,0.00014738,2]
[342489548,1731922244204,-500.0,0.00014738,2]
[342489550,1731922244214,-500.0,0.00014738,2]
[342489553,1731922244223,-500.0,0.00014738,2]
[342489554,1731922244232,-914.75,0.00014738,2]
[342489576,1731922244419,-500.0,0.00014738,2]
[342489578,1731922244429,-500.0,0.00014738,2]
[342489580,1731922244438,-500.0,0.00014738,2]
[342489582,1731922244448,-500.0,0.00014738,2]
[342489584,1731922244458,-500.0,0.00014738,2]
[342489586,1731922244467,-500.0,0.00014738,2]
[342489588,1731922244477,-500.0,0.00014738,2]
[342489590,1731922244486,-500.0,0.00014738,2]
[342489592,1731922244497,-500.0,0.00014738,2]
[342489594,1731922244506,-689.89,0.00014738,2]
[342489596,1731922244515,-500.0,0.00014738,2]
[342489597,1731922244524,-500.0,0.00014738,2]
[342489598,1731922244534,-500.0,0.00014738,2]
[342489599,1731922244544,-518.69,0.00014738,2]
[342489600,1731922244553,-500.0,0.00014738,2]
[342489601,1731922244562,-500.0,0.00014738,2]
[342489602,1731922244571,-500.0,0.00014738,2]
[342489604,1731922244582,-500.0,0.00014738,2]
[342489606,1731922244592,-500.0,0.00014738,2]
[342489608,1731922244602,-500.0,0.00014738,2]
[342489610,1731922244611,-500.0,0.00014738,2]
[342489612,1731922244621,-500.0,0.00014738,2]
[342489614,1731922244630,-169.77984996,0.00014738,2]
[342489844,1731922246724,-1456.7,0.00014463,2]
[342489846,1731922246733,-863.62,0.00014736,2]
[342489848,1731922246743,-500.0,0.00014737,2]
[342489850,1731922246755,-1456.7,0.00014737,2]
[342489852,1731922246764,-432.20823336,0.00014738,2]
[342489854,1731922246774,-1000.0,0.00014738,2]
[342489856,1731922246784,-530.58058341,0.00014738,2]
[342489858,1731922246793,-2554.07,0.00014738,2]
[342489860,1731922246803,-500.0,0.00014738,2]
[342489862,1731922246813,-500.0,0.00014738,2]
[342489864,1731922246822,-500.0,0.00014738,2]
[342489866,1731922246831,-899.63,0.00014738,2]
[342489868,1731922246841,-500.0,0.00014738,2]
[342489870,1731922246850,-521.2,0.00014738,2]
[342489872,1731922246859,-185.11054835,0.00014738,2]
[342489874,1731922246869,-697.59,0.00014738,2]
[342489877,1731922246878,-674.53,0.00014738,2]
[342489879,1731922246888,-500.0,0.00014738,2]
[342489881,1731922246897,-500.0,0.00014738,2]
[342489883,1731922246906,-783.91,0.00014739,2]
[342489885,1731922246915,-38.51422643,0.00014739,2]
[342491063,1731922882060,2235.4164893,0.00013294,2]
[342491123,1731923360338,-1560.71478878,0.00014088,2]
[342491124,1731923360360,-300.0,0.00014185,2]
[342491125,1731923360383,-500.0,0.00014186,2]
[342491126,1731923360407,-633.23,0.00014186,2]
[342491127,1731923360430,-500.0,0.00014186,2]
[342491128,1731923360452,-624.09,0.00014186,2]
[342491129,1731923360474,-500.0,0.00014186,2]
[342491130,1731923360498,-500.0,0.00014186,2]
[342491131,1731923360521,-500.0,0.00014186,2]
[342491132,1731923360543,-828.18,0.00014186,2]
[342491133,1731923360566,-500.0,0.00014187,2]
[342491134,1731923360588,-580.66316434,0.00014187,2]
[342491135,1731923360609,-500.0,0.00014187,2]
[342491136,1731923360631,-500.0,0.00014187,2]
[342491137,1731923360653,-13079.0,0.00014187,2]
[342491138,1731923360674,-552.88,0.00014187,2]
[342491139,1731923360696,-1692.13,0.00014187,2]
[342491140,1731923360717,-500.0,0.00014187,2]
[342491141,1731923360738,-500.0,0.00014187,2]
[342491142,1731923360760,-835.42,0.00014187,2]
[342491143,1731923360781,-1237.2,0.00014187,2]
[342491144,1731923360801,-500.0,0.00014187,2]
[342491145,1731923360822,-500.0,0.00014187,2]
[342491146,1731923360844,-2241.76,0.00014187,2]
[342491147,1731923360866,-500.0,0.00014187,2]
[342491148,1731923360889,-500.0,0.00014187,2]
[342491149,1731923360911,-500.0,0.00014187,2]
[342491150,1731923360932,-500.0,0.00014187,2]
[342491151,1731923360953,-2565.55,0.00014187,2]
[342491152,1731923360976,-500.0,0.00014187,2]
[342491153,1731923360998,-500.0,0.00014187,2]
[342491154,1731923361020,-1548.27,0.00014187,2]
[342491155,1731923361040,-352.98239717,0.00014187,2]
[342491156,1731923361064,-629.42,0.00014187,2]
[342491157,1731923361086,-2042.04,0.00014187,2]
[342491158,1731923361107,-500.0,0.00014187,2]
[342491159,1731923361130,-1779.46,0.00014187,2]
[342491160,1731923361151,-168.43478395,0.00014188,2]
[342491161,1731923361172,-500.0,0.00014188,2]
[342491162,1731923361195,-910.13,0.00014188,2]
[342491163,1731923361216,-500.0,0.00014188,2]
[342491164,1731923361239,-721.18,0.00014188,2]
[342491165,1731923361260,-500.0,0.00014188,2]
[342491166,1731923361283,-705.01,0.00014188,2]
[342491167,1731923361306,-500.0,0.00014188,2]
[342491168,1731923361328,-1237.92,0.00014188,2]
[342491169,1731923361351,-500.0,0.00014188,2]
[342491170,1731923361372,-562.92,0.00014188,2]
[342491171,1731923361394,-500.0,0.00014188,2]
[342491172,1731923361419,-2336.0,0.00014188,2]
[342491173,1731923361440,-552.63,0.00014188,2]
[342491174,1731923361462,-668.71,0.00014188,2]
[342491175,1731923361485,-500.0,0.00014188,2]
[342491176,1731923361506,-652.62,0.00014188,2]
[342491177,1731923361527,-500.0,0.00014188,2]
[342491178,1731923361549,-573.01,0.00014188,2]
[342491179,1731923361572,-500.0,0.00014188,2]
[342491180,1731923361598,-500.0,0.00014188,2]
[342491181,1731923361621,-894.54,0.00014188,2]
[342491182,1731923361642,-627.22,0.00014188,2]
[342491183,1731923361662,-579.52,0.00014188,2]
[342491184,1731923361686,-500.0,0.00014188,2]
[342491185,1731923361708,-992.15,0.00014188,2]
[342491186,1731923361729,-500.0,0.00014188,2]
[342491187,1731923361751,-610.96,0.00014188,2]
[342491188,1731923361772,-1827.21,0.00014188,2]
[342491189,1731923361795,-13196.82,0.00014188,2]
[342491190,1731923361818,-500.0,0.00014188,2]
[342491191,1731923361840,-500.0,0.00014188,2]
[342491192,1731923361860,-6599.51,0.00014188,2]
[342491193,1731923361881,-500.0,0.00014188,2]
[342491194,1731923361902,-2341.23,0.00014188,2]
[342491195,1731923361923,-500.0,0.00014188,2]
[342491196,1731923361943,-500.0,0.00014188,2]
[342491197,1731923361964,-755.66,0.00014188,2]
[342491198,1731923361984,-500.0,0.00014188,2]
[342491199,1731923362008,-500.0,0.00014188,2]
[342491200,1731923362029,-1078.09,0.00014188,2]
[342491201,1731923362050,-1636.15,0.00014188,2]
[342491202,1731923362262,-1331.83,0.00014188,2]
[342491203,1731923362287,-500.0,0.00014188,2]
[342491204,1731923362310,-500.0,0.00014188,2]
[342491205,1731923362332,-618.32,0.00014188,2]
[342491206,1731923362355,-500.0,0.00014188,2]
[342491207,1731923362376,-500.0,0.00014188,2]
[342491208,1731923362398,-500.0,0.00014188,2]
[342491209,1731923362424,-500.0,0.00014188,2]
[342491210,1731923362447,-356.17701538,0.00014188,2]
[342491211,1731923362470,-500.0,0.00014188,2]
[342491212,1731923362492,-500.0,0.00014188,2]
[342491213,1731923362516,-500.0,0.00014188,2]
[342491214,1731923362538,-500.0,0.00014188,2]
[342491215,1731923362563,-591.16678042,0.00014188,2]
[342491216,1731923362584,-500.0,0.00014189,2]
[342491217,1731923362605,-500.0,0.00014189,2]
[342491218,1731923362627,-506.98872608,0.00014189,2]
[342491219,1731923362648,-505.33652678,0.00014189,2]
[342491220,1731923362670,-500.0,0.00014189,2]
[342491221,1731923362691,-500.0,0.00014189,2]
[342491222,1731923362714,-500.0,0.00014189,2]
[342491223,1731923362738,-500.0,0.00014189,2]
[342491224,1731923362759,-501.35498203,0.00014189,2]
[342491225,1731923362783,-500.0,0.00014189,2]
[342491226,1731923362805,-502.74555539,0.00014189,2]
[342491227,1731923362827,-500.0,0.00014189,2]
[342491228,1731923362848,-500.0,0.00014189,2]
[342491229,1731923362871,-821.24,0.00014189,2]
[342491230,1731923362894,-624.49,0.00014189,2]
[342491231,1731923362918,-500.0,0.00014189,2]
[342491232,1731923362940,-503.47011225,0.00014189,2]
[342491233,1731923362962,-506.51846346,0.00014189,2]
[342491234,1731923362984,-500.0,0.00014189,2]
[342491235,1731923363005,-617.27020386,0.00014189,2]
[342491236,1731923363025,-500.0,0.00014189,2]
[342491237,1731923363046,-520.71609653,0.00014189,2]
[342491238,1731923363069,-510.4560035,0.00014189,2]
[342491239,1731923363089,-528.11575737,0.00014189,2]
[342491240,1731923363110,-500.0,0.00014189,2]
[342491241,1731923363130,-499.22603892,0.00014189,2]
[342491242,1731923363151,-500.0,0.00014189,2]
[342491243,1731923363172,-505.63645816,0.00014189,2]
[342491244,1731923363193,-501.88760613,0.00014189,2]
[342491245,1731923363214,-500.0,0.00014189,2]
[342491246,1731923363234,-503.63812652,0.00014189,2]
[342491247,1731923363255,-500.84019244,0.00014189,2]
[342491248,1731923363275,-500.0,0.00014189,2]
[342491249,1731923363296,-300.08428381,0.00014189,2]
[342491250,1731923363320,-500.0,0.00014189,2]
[342491251,1731923363342,-500.0,0.00014189,2]
[342491252,1731923363364,-500.0,0.00014189,2]
[342491253,1731923363386,-500.0,0.00014189,2]
[342491254,1731923363414,-500.0,0.00014189,2]
[342491255,1731923363436,-500.0,0.00014189,2]
[342491256,1731923363459,-500.0,0.00014189,2]
[342491257,1731923363482,-500.0,0.00014189,2]
[342491258,1731923363504,-500.0,0.00014189,2]
[342491259,1731923363525,-500.0,0.00014189,2]
[342491260,1731923363546,-500.0,0.00014189,2]
[342491261,1731923363570,-500.0,0.00014189,2]
[342491262,1731923363591,-500.0,0.00014189,2]
[342491263,1731923363613,-500.0,0.00014189,2]
[342491264,1731923363636,-873.09,0.00014189,2]
[342491265,1731923363658,-1000.0,0.00014189,2]
[342491266,1731923363680,-500.0,0.00014189,2]
[342491267,1731923363703,-396.31377753,0.00014189,2]
[342491268,1731923363727,-1274.61,0.00014189,2]
[342491269,1731923363749,-500.0,0.00014189,2]
[342491270,1731923363770,-500.0,0.00014189,2]
[342491271,1731923363791,-718.58,0.00014189,2]
[342491272,1731923363814,-787.18,0.00014189,2]
[342491273,1731923363835,-500.0,0.00014189,2]
[342491274,1731923363858,-500.0,0.00014189,2]
[342491275,1731923363880,-500.0,0.00014189,2]
[342491276,1731923363901,-528.51,0.00014189,2]
[342491277,1731923363922,-500.0,0.00014189,2]
[342491278,1731923363943,-633.75,0.00014189,2]
[342491279,1731923363969,-500.0,0.00014189,2]
[342491280,1731923363991,-500.0,0.00014189,2]
[342491281,1731923364014,-500.0,0.00014189,2]
[342491282,1731923364036,-813.14,0.00014189,2]
[342491283,1731923364059,-500.0,0.00014189,2]
[342491284,1731923364080,-264.3021691,0.00014189,2]
[342491285,1731923364102,-500.0,0.00014189,2]
[342491286,1731923364124,-500.0,0.00014189,2]
[342491287,1731923364146,-500.0,0.00014189,2]
[342491288,1731923364170,-610.39,0.00014189,2]
[342491289,1731923364191,-500.0,0.00014189,2]
[342491290,1731923364214,-500.0,0.00014189,2]
[342491291,1731923364235,-1056.72,0.00014189,2]
[342491292,1731923364256,-500.0,0.00014189,2]
[342491293,1731923364277,-500.0,0.00014189,2]
[342491294,1731923364297,-500.0,0.00014189,2]
[342491295,1731923364322,-1345.25,0.00014189,2]
[342491296,1731923364344,-500.0,0.00014189,2]
[342491297,1731923364366,-670.91,0.00014189,2]
[342491298,1731923364388,-500.0,0.00014189,2]
[342491299,1731923364412,-500.0,0.00014189,2]
[342491300,1731923364433,-1146.41,0.00014189,2]
[342491301,1731923364454,-1322.92,0.00014189,2]
[342491302,1731923364477,-500.0,0.00014189,2]
[342491303,1731923364498,-2495.72,0.00014189,2]
[342491304,1731923364519,-1108.96,0.00014189,2]
[342491305,1731923364541,-500.0,0.00014189,2]
[342491306,1731923364563,-500.0,0.00014189,2]
[342491307,1731923364584,-920.92,0.00014189,2]
[342491308,1731923364606,-500.0,0.00014189,2]
[342491309,1731923364628,-500.0,0.00014189,2]
[342491310,1731923364649,-644.54048788,0.00014189,2]
[342491311,1731923364670,-500.0,0.00014189,2]
[342491312,1731923364691,-912.41,0.00014189,2]
[342491313,1731923364712,-792.31,0.00014189,2]
[342491314,1731923364733,-500.0,0.00014189,2]
[342491315,1731923364753,-500.0,0.00014189,2]
[342491316,1731923364774,-1152.91,0.00014189,2]
[342491317,1731923364794,-187.52658899,0.00014189,2]
[342491318,1731923364817,-10493.17200464,0.00014281,2]
[342491319,1731923364840,-141022.63949969,0.0001436,2]
[342491320,1731923364861,-500.0,0.0001446,2]
[342491321,1731923364883,-633.23,0.0001446,2]
[342491322,1731923364906,-500.0,0.0001446,2]
[342491323,1731923364927,-624.09,0.0001446,2]
[342491324,1731923364948,-500.0,0.0001446,2]
[342491325,1731923364969,-500.0,0.0001446,2]
[342491326,1731923364990,-500.0,0.0001446,2]
[342491327,1731923365011,-828.18,0.0001446,2]
[342491328,1731923365032,-500.0,0.00014461,2]
[342491329,1731923365054,-500.0,0.00014461,2]
[342491330,1731923365076,-500.0,0.00014461,2]
[342491331,1731923365097,-13079.0,0.00014461,2]
[342491332,1731923365118,-552.88,0.00014461,2]
[342491333,1731923365140,-1692.13,0.00014461,2]
[342491334,1731923365160,-500.0,0.00014461,2]
[342491335,1731923365180,-500.0,0.00014461,2]
[342491336,1731923365201,-835.42,0.00014461,2]
[342491337,1731923365222,-1237.2,0.00014461,2]
[342491338,1731923365243,-500.0,0.00014461,2]
[342491339,1731923365265,-2241.76,0.00014461,2]
[342491340,1731923365286,-500.0,0.00014461,2]
[342491341,1731923365309,-500.0,0.00014461,2]
[342491342,1731923365330,-500.0,0.00014461,2]
[342491343,1731923365351,-2565.55,0.00014461,2]
[342491344,1731923365373,-500.0,0.00014461,2]
[342491345,1731923365394,-1548.27,0.00014461,2]
[342491346,1731923365419,-500.80629251,0.00014461,2]
[342491347,1731923367476,209877.7084889,0.0001,2]
[342491414,1731923431896,-300.0,0.00014088,2]
[342491416,1731923431906,-168.43478396,0.00014089,2]
[342491418,1731923431916,-130.75327368,0.00014089,2]
[342491421,1731923431929,-16099.54233344,0.00014089,2]
[342491423,1731923431940,-586.9474015,0.00014089,2]
[342491425,1731923431953,-515.25402673,0.00014089,2]
[342491554,1731923437853,-1365.6254402,0.00014086,2]
[342491555,1731923437864,-3522.34361582,0.00014089,2]
[342491556,1731923437875,-1504.90726,0.00014089,2]
[342491557,1731923437965,-36007.05377726,0.00014089,2]
[342491558,1731923438054,-4068.5027776,0.00014089,2]
[342491643,1731923442803,-2145.58150197,0.00014089,2]
[342491645,1731923442815,-7150.08550355,0.00014089,2]
[342491648,1731923442824,-555.38,0.00014186,2]
[342491651,1731923442834,-574.29245951,0.00014186,2]
[342491851,1731923461614,3000.0,0.00013461,2]
[342491854,1731923828867,1352.98796486,0.00013988,2]
[342491855,1731924019103,1183.86446927,0.00013987,2]
[342491856,1731924138966,568.0,0.00013112,2]
[342491868,1731924209351,1035.88141062,0.00013986,2]
[342491869,1731924400207,906.39623431,0.00013986,2]
[342491870,1731924428584,24880.0,0.00013103,2]
[342491871,1731924444123,-300.0,0.00014085,2]
[342491872,1731924444146,-243.57132621,0.00014086,2]
[342491873,1731924444167,-500.0,0.00014086,2]
[342491874,1731924444188,-500.0,0.00014086,2]
[342491875,1731924444214,-500.0,0.00014086,2]
[342491876,1731924444236,-188.96961765,0.00014086,2]
[342491877,1731924444260,-541.52133056,0.00014086,2]
[342491878,1731924444285,-500.0,0.00014086,2]
[342491879,1731924444308,-500.0,0.00014086,2]
[342491880,1731924444330,-500.0,0.00014086,2]
[342491881,1731924444355,-893.05,0.00014086,2]
[342491882,1731924444377,-601.04533444,0.00014086,2]
[342491883,1731924444401,-500.0,0.00014086,2]
[342491884,1731924444425,-99.43101145,0.00014086,2]
[342491891,1731924571118,-6565.44778068,0.00014036,2]
[342491893,1731924592920,793.09670496,0.00013986,2]
[342492227,1731924635195,-3933.16749572,0.00014036,2]
[342492228,1731924635205,-300.0,0.00014084,2]
[342492229,1731924635215,-500.0,0.00014085,2]
[342492230,1731924635224,-2570.21,0.00014085,2]
[342492231,1731924635234,-654.82,0.00014085,2]
[342492232,1731924635244,-500.0,0.00014085,2]
[342492233,1731924635253,-1849.7,0.00014085,2]
[342492234,1731924635263,-500.0,0.00014085,2]
[342492235,1731924635272,-500.0,0.00014085,2]
[342492236,1731924635281,-500.0,0.00014085,2]
[342492237,1731924635290,-500.0,0.00014085,2]
[342492238,1731924635300,-406.65404884,0.00014085,2]
[342492239,1731924635310,-500.0,0.00014085,2]
[342492240,1731924635319,-500.0,0.00014085,2]
[342492241,1731924635329,-500.0,0.00014085,2]
[342492242,1731924635339,-12825.93,0.00014085,2]
[342492243,1731924635348,-527.64,0.00014085,2]
[342492244,1731924635358,-500.0,0.00014085,2]
[342492245,1731924635368,-500.0,0.00014085,2]
[342492247,1731924635378,-500.0,0.00014085,2]
[342492249,1731924635392,-500.0,0.00014085,2]
[342492250,1731924635402,-487.35539382,0.00014085,2]
[342492251,1731924635412,-500.0,0.00014085,2]
[342492252,1731924635421,-500.0,0.00014085,2]
[342492253,1731924635431,-500.0,0.00014085,2]
[342492254,1731924635441,-500.0,0.00014085,2]
[342492255,1731924635453,-500.0,0.00014085,2]
[342492256,1731924635464,-500.0,0.00014085,2]
[342492257,1731924635474,-185.57907479,0.00014085,2]
[342492258,1731924635484,-500.0,0.00014085,2]
[342492259,1731924635494,-500.0,0.00014085,2]
[342492260,1731924635504,-300.0,0.00014085,2]
[342492261,1731924635513,-500.0,0.00014085,2]
[342492262,1731924635522,-249.32391077,0.00014085,2]
[342492263,1731924635531,-500.0,0.00014085,2]
[342492264,1731924635541,-500.0,0.00014085,2]
[342492265,1731924635550,-500.0,0.00014085,2]
[342492266,1731924635560,-500.0,0.00014085,2]
[342492267,1731924635570,-500.0,0.00014085,2]
[342492268,1731924635580,-500.0,0.00014085,2]
[342492269,1731924635589,-500.0,0.00014085,2]
[342492270,1731924635598,-500.0,0.00014085,2]
[342492271,1731924635608,-500.0,0.00014085,2]
[342492272,1731924635618,-500.0,0.00014085,2]
[342492273,1731924635628,-378.69717828,0.00014085,2]
[342492275,1731924635637,-500.0,0.00014085,2]
[342492277,1731924635647,-500.0,0.00014085,2]
[342492278,1731924635656,-500.0,0.00014085,2]
[342492280,1731924635665,-500.0,0.00014085,2]
[342492282,1731924635675,-500.0,0.00014085,2]
[342492284,1731924635685,-500.0,0.00014085,2]
[342492286,1731924635694,-500.0,0.00014085,2]
[342492288,1731924635707,-500.0,0.00014085,2]
[342492289,1731924635716,-392.41739293,0.00014085,2]
[342492291,1731924635727,-162.38088414,0.00014086,2]
[342492299,1731924636008,-612.52898855,0.00014086,2]
[342492300,1731924636019,-500.0,0.00014086,2]
[342492301,1731924636029,-500.0,0.00014086,2]
[342492302,1731924636038,-500.0,0.00014086,2]
[342492303,1731924636048,-696.46,0.00014086,2]
[342492304,1731924636058,-786.64,0.00014086,2]
[342492305,1731924636067,-500.0,0.00014086,2]
[342492306,1731924636076,-500.0,0.00014086,2]
[342492307,1731924636086,-500.0,0.00014086,2]
[342492308,1731924636095,-500.0,0.00014086,2]
[342492309,1731924636107,-516.92069076,0.00014086,2]
[342492310,1731924636116,-500.0,0.00014086,2]
[342492311,1731924636126,-500.0,0.00014086,2]
[342492312,1731924636136,-500.0,0.00014086,2]
[342492313,1731924636145,-1207.17,0.00014086,2]
[342492314,1731924636155,-500.0,0.00014086,2]
[342492315,1731924636165,-500.0,0.00014086,2]
[342492316,1731924636174,-500.0,0.00014086,2]
[342492317,1731924636184,-560.3,0.00014086,2]
[342492318,1731924636194,-500.0,0.00014086,2]
[342492319,1731924636206,-500.0,0.00014086,2]
[342492320,1731924636215,-2336.0,0.00014086,2]
[342492321,1731924636225,-500.0,0.00014086,2]
[342492322,1731924636235,-604.24,0.00014086,2]
[342492323,1731924636245,-661.68,0.00014086,2]
[342492324,1731924636255,-500.0,0.00014086,2]
[342492325,1731924636264,-500.0,0.00014086,2]
[342492326,1731924636274,-646.26,0.00014086,2]
[342492327,1731924636283,-500.0,0.00014086,2]
[342492328,1731924636293,-500.0,0.00014086,2]
[342492329,1731924636302,-500.0,0.00014086,2]
[342492330,1731924636311,-500.0,0.00014086,2]
[342492331,1731924636320,-500.0,0.00014086,2]
[342492332,1731924636331,-621.02,0.00014086,2]
[342492333,1731924636340,-878.1,0.00014086,2]
[342492334,1731924636350,-500.0,0.00014086,2]
[342492335,1731924636359,-500.0,0.00014086,2]
[342492336,1731924636369,-621.92,0.00014086,2]
[342492337,1731924636379,-500.0,0.00014086,2]
[342492338,1731924636390,-500.0,0.00014086,2]
[342492339,1731924636399,-977.6,0.00014086,2]
[342492340,1731924636411,-500.0,0.00014086,2]
[342492341,1731924636421,-500.0,0.00014086,2]
[342492342,1731924636431,-509.78645676,0.00014086,2]
[342492343,1731924636441,-638.52,0.00014086,2]
[342492344,1731924636455,-326.17233711,0.00014086,2]
[342492345,1731924636465,-500.0,0.00014086,2]
[342492346,1731924636475,-500.0,0.00014086,2]
[342492347,1731924636485,-619.3,0.00014086,2]
[342492348,1731924636497,-500.0,0.00014086,2]
[342492349,1731924636507,-500.0,0.00014086,2]
[342492350,1731924636517,-500.0,0.00014086,2]
[342492351,1731924636526,-500.0,0.00014086,2]
[342492352,1731924636537,-807.85,0.00014086,2]
[342492353,1731924636546,-6324.53,0.00014086,2]
[342492354,1731924636555,-500.0,0.00014086,2]
[342492355,1731924636564,-306.05659478,0.00014086,2]
[342492356,1731924636574,-500.0,0.00014086,2]
[342492357,1731924636583,-500.0,0.00014086,2]
[342492358,1731924636596,-631.05297536,0.00014086,2]
[342492359,1731924636605,-500.0,0.00014086,2]
[342492360,1731924636615,-500.0,0.00014086,2]
[342492361,1731924636624,-745.01,0.00014086,2]
[342492362,1731924636634,-2315.15,0.00014086,2]